Cogmind - Beta 14 @@@ ROGUE MODE // 2024.12.12 @ 19:24:45 Player: Two Silent Monoliths Result: Destroyed by as-49279 with Assembled Blade Performance ------------- Evolutions (0) 0 Regions Visited (2) 400 Robots Destroyed (19) 95 Value Destroyed (300) 300 Prototype IDs (4) 80 Alien Tech Used (0) 0 Bonus (0) 0 TOTAL SCORE: 875 Bonus ------- None Cogmind --------- Core Integrity 0/250 Matter 224/300 Energy 250/250 System Corruption 0% Temperature Warm (168) Movement Treading (160) Location -10/Mines Parts ------- > --- POWER (1) -------- Ion Engine > --- PROPULSION (2) --- Light Treads > --- UTILITY (2) ------ Small Storage Unit Signal Interpreter > --- WEAPON (2) ------- Heavy Particle Cannon High-powered Shotgun > --- INVENTORY (8) ---- Light Treads Light Treads Heat Sink Improved Heat Sink Hacking Suite Light Assault Rifle Grenade Launcher Peak State ------------ > --- POWER ------------ Ion Engine > --- PROPULSION ------- Light Treads Light Treads > --- UTILITY ---------- Small Storage Unit Signal Interpreter > --- WEAPON ----------- Heavy Particle Cannon High-powered Shotgun > --- INVENTORY -------- Light Treads Light Treads Heat Sink Improved Heat Sink Hacking Suite Light Assault Rifle Grenade Launcher [Rating: 12] Favorites ----------- Power Ion Engine Engine Ion Engine Propulsion Light Treads Treads Light Treads Utility Small Storage Unit Storage Small Storage Unit Processor Signal Interpreter Weapon Light Assault Rifle Energy Cannon Heavy Particle Cannon Ballistic Gun Light Assault Rifle Launcher Grenade Launcher Build | -11 -10 -10 ------- Run | Yrd Mat Min Slots Evolved . | . . . Power . | . . . Propulsion . | . . . Utility . | . . . Weapon . | . . . Parts Attached 17 | 6 7 4 Power 3 | 1 1 1 Engine 3 | 1 1 1 Core . | . . . Reactor . | . . . Propulsion 4 | 2 2 . Treads 4 | 2 2 . Leg . | . . . Wheel . | . . . Hover . | . . . Flight . | . . . Utility 3 | 1 2 . Device . | . . . Storage 1 | 1 . . Processor 2 | . 2 . Hackware . | . . . Protection . | . . . Artifact . | . . . Weapon 7 | 2 2 3 Energy Gun . | . . . Energy Cannon 1 | . . 1 Ballistic Gun 5 | 2 2 1 Ballistic Cannon . | . . . Launcher 1 | . . 1 Special Weapon . | . . . Impact Weapon . | . . . Slashing Weapon . | . . . Piercing Weapon . | . . . Special Melee Weapon . | . . . Unidentified Prototypes . | . . . Parts Lost 1 | . . 1 Power . | . . . Propulsion 1 | . . 1 Utility . | . . . Weapon . | . . . Highest Loss Streak 1 | . . 1 To Critical Strikes . | . . . Average Slot Usage (%) 89 | . 88 100 Engine 14 | . 14 14 Treads 28 | . 28 28 Storage 14 | . 14 14 Processor 5 | . 4 14 Ballistic Gun 25 | . 27 14 Launcher 1 | . . 10 Peak Build Rating 12 | 6 8 12 Average Rating 6 | 4 6 8 On Entrance 4 | . 6 7 Naked Turns . | . . . Heaviest Build 19 | 12 12 19 Greatest Support 40 | 40 40 40 Greatest Overweight (x) . | . . . Average Overweight (x) . | . . . Largest Inventory Capacity 8 | 8 8 8 Average Capacity 7 | 7 8 8 Most Carried 8 | 5 8 8 Average Carried 5 | 1 5 6 Final Capacity 8 | 8 8 8 Final Carried 7 | 1 7 7 Class Distribution -------------------- 100% | Mutant Dominant Class ---------------- Mutant | -10/Materials Mutant | -10/Mines Resources | -11 -10 -10 ----------- Run | Yrd Mat Min Matter Collected 473 | 260 204 9 Remotely . | . . . Salvage Created 527 | . 491 36 Parts 42 | . 36 6 Haulers Intercepted . | . . . Recyclers Shooed 1 | . 1 . Parts Field Recycled . | . . . Retrieved Matter . | . . . Parts Self-Destructed . | . . . Prevented . | . . . Kills | -11 -10 -10 ------- Run | Yrd Mat Min Combat Hostiles Destroyed 15 | . 10 5 Guns 11 | . 10 1 Cannons 1 | . . 1 AOE 3 | . . 3 Classes Destroyed 6 | . 5 1 Worker 1 | . 1 . Recycler 2 | . 2 . Watcher 3 | . 3 . Swarmer 9 | . 6 3 Grunt 4 | . 4 . Assembled 2 | . . 2 Best Kill Streak 3 | . 3 3 Combat Bots Only 3 | . 3 3 Max Kills in Single Turn 2 | . 1 2 Gunslinging . | . . . Exploded 2 | . . 2 Melee . | . . . Uniques/NPCs Destroyed . | . . . Combat | -11 -10 -10 -------- Run | Yrd Mat Min Hostile Shots Fired 129 | . 77 52 Missed 27 | . 16 11 Damage Taken 1230 | . 554 676 Core 265 | . 130 135 Absorbed by Shields . | . . . Regen/Repaired (Parts) 61 | . 61 . Core Remaining (%) 100 | 100 . . Volleys Fired 80 | . 69 11 Largest 2 | . 2 2 Hottest 100 | . 40 100 Shots Fired 158 | . 138 20 Gun 151 | . 138 13 Cannon 5 | . . 5 Launcher 2 | . . 2 Special . | . . . Kinetic 151 | . 138 13 Thermal 5 | . . 5 Explosive 2 | . . 2 Electromagnetic . | . . . Robot Hit Streak 12 | . 12 3 Robot Miss Streak 8 | . 8 4 Penetration Max . | . . . Secondary Targets 4 | . 4 . Max Gunslinging Chain 1 | . 1 . Shots Hit Robots 74 | . 67 7 Core Hits 43 | . 35 8 Critical Kills . | . . . Critical Parts Destroyed . | . . . Critical Strikes . | . . . Melee Attacks . | . . . Impact . | . . . Slashing . | . . . Piercing . | . . . Sneak Attacks . | . . . Combat Hostiles . | . . . Follow-up Attacks . | . . . Damage Inflicted 878 | . 620 258 Guns 690 | . 597 93 Cannons 75 | . . 75 Explosions 87 | . . 87 Melee . | . . . Ramming 26 | . 23 3 Kinetic 690 | . 597 93 Thermal 75 | . . 75 Explosive 87 | . . 87 Electromagnetic . | . . . Impact . | . . . Slashing . | . . . Piercing . | . . . Highest Corruption . | . . . Average Corruption . | . . . Corruption Purged . | . . . Corruption Blocked . | . . . Overload Shots . | . . . Overflow Damage . | . . . Projectiles . | . . . Explosions . | . . . Melee . | . . . Knockbacks . | . . . Impact . | . . . Kinetic . | . . . Secondary . | . . . Self-Inflicted Damage . | . . . Shots . | . . . Rammed 4 | . 3 1 Targets Rammed 5 | . 4 1 Kicked . | . . . Crushed 1 | . 1 . Highest Temperature 176 | . 28 176 Average Temperature 60 | . 12 100 Received Heat Transfer 137 | . 117 20 Siege Activations . | . . . Robots Corrupted . | . . . Combat Hostiles . | . . . Parts Fried . | . . . Impact Corruptions . | . . . Robots Melted . | . . . Combat Hostiles . | . . . Parts Melted . | . . . Heat Transferred 111 | . . 111 Parts Sabotaged . | . . . Parts Stolen . | . . . Parts Stripped . | . . . Power Chain Reactions . | . . . Alert | -11 -10 -10 ------- Run | Yrd Mat Min Peak Influence 201 | . 201 109 Initial 21 | . . 21 Average 74 | . 74 101 Maximum Alert Level 1 | . 1 . Low Security (%) 96 | 100 95 100 Level 1 3 | . 4 . Level 2 . | . . . Level 3 . | . . . Level 4 . | . . . Level 5 . | . . . High Security . | . . . Max Security . | . . . Squads Dispatched 2 | . 1 1 Investigation 2 | . 1 1 Extermination . | . . . Reinforcement . | . . . Assault . | . . . Garrison . | . . . Intercept . | . . . Searches Triggered . | . . . Construction Impeded . | . . . Haulers Reinforced . | . . . Active Scanning Responses . | . . . Cargo Convoy Interrupts . | . . . Stealth | -11 -10 -10 --------- Run | Yrd Mat Min Distress Signals . | . . . Communications Jammed . | . . . Distress Signals . | . . . Times Spotted 33 | . 22 11 Peak Tracking Total 7 | . 4 7 Tactical Retreats . | . . . Traps | -11 -10 -10 ------- Run | Yrd Mat Min Traps Triggered 1 | . 1 . Indirectly . | . . . Trap Hack Attempts . | . . . Triggered . | . . . Disarmed . | . . . Reprogrammed . | . . . Reused . | . . . Traps Extracted . | . . . Installed . | . . . Triggered . | . . . Machines | -11 -10 -10 ---------- Run | Yrd Mat Min Machines Disabled . | . . . Max in Single Turn . | . . . Machines Repaired . | . . . Machines Dismantled . | . . . Machines Sabotaged . | . . . Overloaded Fab Kills . | . . . Hacking | -11 -10 -10 --------- Run | Yrd Mat Min Machines Accessed 10 | . 9 1 Terminals 8 | . 8 . Fabricators . | . . . Repair Stations 1 | . 1 . Recycling Units . | . . . Scanalyzers . | . . . Garrison Access . | . . . Total Hacks 32 | . 31 1 Successful 17 | . 16 1 Failed 15 | . 15 . Catastrophic 3 | . 3 . Database Lockouts . | . . . Manual . | . . . Terminals 23 | . 23 . Fabricators . | . . . Repair Stations 8 | . 8 . Recycling Units . | . . . Scanalyzers . | . . . Garrison Access . | . . . Terminal Hacks 12 | . 11 1 Prototype ID Bank 2 | . 2 . Open Door 1 | . . 1 Emergency Access Points 1 | . 1 . Recycling Unit Index 1 | . 1 . Alert Level 3 | . 3 . Dispatch Records 1 | . 1 . Transport Status 1 | . 1 . Hauler Manifests 2 | . 2 . Fabricator Hacks . | . . . Repair Station Hacks 5 | . 5 . Scan Component 3 | . 3 . Repair 2 | . 2 . Recycling Unit Hacks . | . . . Scanalyzer . | . . . Garrison Access Hacks . | . . . Unauthorized Hacks . | . . . Terminals . | . . . Fabricators . | . . . Repair Stations . | . . . Recycling Units . | . . . Scanalyzers . | . . . Garrison Access . | . . . Data Cores Recovered . | . . . Used . | . . . Hacking Detections 9 | . 9 . Full Trace Events 1 | . 1 . Feedback Events . | . . . Feedback Blocked . | . . . Robot Schematics Acquired . | . . . Robots Built . | . . . Authchips . | . . . Time . | . . . Total Robot Build Rating . | . . . Part Schematics Acquired . | . . . Parts Built . | . . . Authchips . | . . . Time . | . . . Total Part Build Rating . | . . . Parts Repaired 2 | . 2 . Time 64 | . 64 . Parts Recycled . | . . . Recycled Matter . | . . . Retrieved Matter . | . . . Retrieved Components . | . . . Parts Scanalyzed . | . . . Part Schematics Acquired . | . . . Parts Damaged . | . . . Bothacking | -11 -10 -10 ------------ Run | Yrd Mat Min Used RIF Installer . | . . . Robots Hacked . | . . . Non-combat . | . . . Combat . | . . . Robot Hacks Applied . | . . . Relay Couplers Released . | . . . Fabnet Peak Effective % . | . . . Robots Rewired . | . . . Allies Hacked . | . . . Hacks Repelled . | . . . Allies | -11 -10 -10 -------- Run | Yrd Mat Min Total Allies 2 | . . 2 Largest Group 2 | . . 2 Highest-Rated Group 42 | . . 42 Highest-Rated Ally 31 | . . 31 Total Orders . | . . . Ally Attacks 4 | . . 4 Total Damage 42 | . . 42 Kills 1 | . . 1 Allies Corrupted . | . . . Allies Melted . | . . . Intel | -11 -10 -10 ------- Run | Yrd Mat Min Robot Analysis Total . | . . . Derelict Logs Recovered 1 | . . 1 Drone Launches . | . . . Drone Recoveries . | . . . Exploration | -11 -10 -10 ------------- Run | Yrd Mat Min Turns Passed 1798 | 74 1510 214 Spaces Moved 929 | 45 776 108 Core 9 | 9 . . Treads 920 | 36 776 108 Legs . | . . . Wheels . | . . . Hover . | . . . Flight . | . . . Fastest Speed 50 | 50 160 160 Average Speed 158 | 138 160 160 Slowest Speed 160 | 160 160 160 Overloaded Moves . | . . . Propulsion Burnouts . | . . . Robots Hopped . | . . . Cave-ins Triggered . | . . . Exploration Rate (%) 43 | 3 96 32 Regions Visited 2 Branch Regions 1 Pre-discovered Areas . | . . . Known Exits Taken 1 | . 1 . Unknown Exits Taken 1 | 1 . . Scrap Searched . | . . . Spaces Dug . | . . . Terrain Destroyed 20 | . . 20 Melee . | . . . Projectile 2 | . . 2 AOE 18 | . . 18 Terrain Rammed . | . . . Walls Destroyed . | . . . Machines Disabled . | . . . Actions | -11 -10 -10 --------- Run | Yrd Mat Min Total 1119 | 57 932 130 Wait 61 | . 61 . Move 927 | 44 775 108 Hop . | . . . Pick Up 22 | 7 12 3 Fast Attach . | . . . Attach 8 | 6 2 . Detach . | . . . Swap 9 | . 5 4 Drop 7 | . 4 3 Fire 80 | . 69 11 Melee . | . . . Ram . | . . . Kick . | . . . Crush 5 | . 4 1 Escape Stasis . | . . . Rewire . | . . . Trap . | . . . Miscellaneous . | . . . Route ------- -11/Scrapyard -10/Materials (discovered 4 exits: *Mat x3 / *Min) -10/Mines (discovered 1 exit: *Mat) History --------- Turn | Location | Event 20 | -11/Scrapyard | Discovered new exit (range 15) 75 | -11/Scrapyard | Entered Materials 302 | -10/Materials | Discovered new exit (range 15) 304 | -10/Materials | Build established: Mutant 524 | -10/Materials | Discovered new exit (range 6) 655 | -10/Materials | Discovered new exit (range 13) 935 | -10/Materials | Core integrity fell below 50% 1072 | -10/Materials | Discovered new exit (range 16) 1372 | -10/Materials | Repaired Lgt. Assault Rifle 1411 | -10/Materials | Repaired Imp. Heat Sink 1476 | -10/Materials | Identified exit to Materials 1583 | -10/Materials | Identified exit to Mines 1585 | -10/Materials | Entered Mines 1600 | -10/Mines | Discovered exit to Materials (range 14) 1721 | -10/Mines | Met a Derelict shopkeep closing up shop 1758 | -10/Mines | Assembled infested the area 1796 | -10/Mines | Core integrity fell below 20% 1799 | -10/Mines | Destroyed by as-49279 with Assembled Blade Last Messages --------------- I've had enough of this place!" Acquired Hacking Suite. Dropped Lgt. Assault Rifle. Dropped Ion Engine. Acquired Hpw. Shotgun. Dropped Lgt. Treads. Acquired Hvy. Particle Cannon. ALERT: Infestation in the mines, dispatching Demolisher response squad. A pair of derelicts emerge from the shadows: "We're, um, lost. You wouldn't happen to know the way out of here, would you?" Acquired derelict log, extracted data. Data stored: Storage entrances (x1). as-05166 destroyed. 1D-BIG(g) destroyed. as-83884 destroyed. as-16329 sneak attacks. as-24704 destroyed. Lgt. Treads destroyed. Map ----- +----------------------------------------------------+ | | | | | | | | | | | | | | | | | | | | | | | | | | | ???????????????????????????????????? | | ???????????????????????????????????? | | ???????????????????????????????????? | | ???????###?????????????????????????? | | ???????# #????????????????????????? | | ???????? ##??????????????????????? | | ???????? ###????????????????????? | | ????????? ?????????????????????? | | ????????? *a#?????????????????????? | | ?????????# !%#### ### ?????????? | | ?????????# a% #???????????? | | ????????##aaa% % " ?????????? | | ????????#; @#######????????????????? | | ????????## ###????????????????????? | | ?????????# #????????????????????? | | ?????????# #????????????????????? | | ????###??## #????????????????????? | | ???## #?## ##???????????????????? | | ???# ## ###?????????????????? | | ???# ##????????????????? | | ???# ##???????????????? | | ???# #???????????????? | | ???## ######??????????? | | ????## #????????? | | ???#### #????????? | | ??##""## ##### ?????????? | | ??#"!= # ##???????????????? | | ??#"! #????????????????? | | ??#" * # ##???????????????? | | ??#"[! #X # #???????????????? | | ??##""## #???????????????? | | ???####### #???????????????? | | ?????????# #???????????????? | | ?????????## ## #???????????????? | | ?????????## ##? #???????????????? | | ????????## ##??? ??????????????? | | ??????### #?????###?????????????? | +----------------------------------------------------+ Best States ------------- Heat Dissipation 25 Energy Generation 10 Energy Capacity 250 Matter Stores 300 Matter Capacity 300 Sight Range 16 Terrain Scan Density 10 Evasion (%) 50 Targeting Accuracy 5 Recoil Reduction 2 Item Schematics ----------------- None Robot Schematics ------------------ None Fabricated ------------ Nothing Alien Tech Used ----------------- None Achievements -------------- None Challenges ------------ None Game ------ Seed QuantumInsulationCore Manual? 0 Play Time 00:17:11 Cumulative 6.6 hours Start 2024.12.12 @ 17:50:29 End 2024.12.12 @ 19:24:45 Sessions 1 Manual Loads 0 Difficulty Rogue Special Mode None Game No. 9 Rogue 9 Adventurer 0 Explorer 0 Win Type - Total 0 Types 0/0/0/0/0/0/0/0/0 Lore% 9 Gallery% 13 Achievement% 17 Wizard Run 0 Options --------- Layout 1 ASCII 0 Keyboard 0 Movement Mouse Keybinds 0 Fullscreen 1 Font 24/Smallcaps Map View 50x35 Zoom Use 0% Tactical HUD 0 Map Filters NONE Filters NONE Steam 1 RUN: 37291a18-ee5b-4b7f-aa13-82b803a6f0bb